Cogmind - Beta 11 X8 @@@ ROGUE MODE // 2021.11.05 @ 11:43:49 Player: Sylvia Result: Destroyed by G-34 Mercenary with Small Laser Performance ------------- Evolutions (0) 0 Regions Visited (4) 800 Robots Destroyed (22) 110 Value Destroyed (462) 462 Prototype IDs (24) 480 Alien Tech Used (0) 0 Bonus (300) 300 TOTAL SCORE: 2152 Bonus ------- Aligned with FarCom 300 Cogmind --------- Core Integrity 0/250 Matter 157/300 Energy 160/160 System Corruption 0% Temperature Cool (8) Movement Walking (120) Location -9/Mines Parts ------- > --- POWER (1) -------- Light Nuclear Core > --- PROPULSION (2) --- Aluminum Leg Aluminum Leg > --- UTILITY (2) ------ Small Storage Unit Experimental Sensor Array > --- WEAPON (2) ------- Light Assault Rifle Light Assault Rifle > --- INVENTORY (8) ---- Light Nuclear Core Aluminum Leg Aluminum Leg Aluminum Leg Improved Aluminum Leg Large Storage Unit Large Storage Unit Medium Laser Peak State ------------ > --- POWER ------------ Light Nuclear Core > --- PROPULSION ------- Aluminum Leg Improved Aluminum Leg > --- UTILITY ---------- Small Storage Unit Experimental Sensor Array > --- WEAPON ----------- Light Assault Rifle Light Assault Rifle > --- INVENTORY -------- Light Nuclear Core Aluminum Leg Aluminum Leg Aluminum Leg Aluminum Leg Large Storage Unit Large Storage Unit Medium Laser [Rating: 19] Favorites ----------- Power Light Ion Engine Engine Light Ion Engine Power Core Light Nuclear Core Propulsion Light Treads Treads Light Treads Leg Aluminum Leg Utility Large Storage Unit Device Experimental Sensor Array Storage Large Storage Unit Processor 0b10 Alert Chip Protection Power Shielding Weapon Light Assault Rifle Energy Gun Medium Laser Energy Cannon Latent Energy Streamer Ballistic Gun Light Assault Rifle Build | -11 -10 -10 -10 -9 ------- Run | Scr Mat Min Exi Min Slots Evolved . | . . . . . Power . | . . . . . Propulsion . | . . . . . Utility . | . . . . . Weapon . | . . . . . Parts Attached 40 | 6 5 12 8 9 Power 7 | 1 1 4 . 1 Engine 6 | 1 1 4 . . Core 1 | . . . . 1 Reactor . | . . . . . Propulsion 9 | 2 2 1 . 4 Treads 3 | . 2 1 . . Leg 6 | 2 . . . 4 Wheel . | . . . . . Hover . | . . . . . Flight . | . . . . . Utility 10 | 1 2 . 5 2 Device 2 | . . . 1 1 Storage 5 | 1 1 . 2 1 Processor 1 | . . . 1 . Hackware . | . . . . . Protection 2 | . 1 . 1 . Artifact . | . . . . . Weapon 14 | 2 . 7 3 2 Energy Gun 2 | 1 . . 1 . Energy Cannon 1 | . . . 1 . Ballistic Gun 11 | 1 . 7 1 2 Ballistic Cannon . | . . . . . Launcher . | . . . . . Special Weapon . | . . . . . Impact Weapon . | . . . . . Slashing Weapon . | . . . . . Piercing Weapon . | . . . . . Special Melee Weapon . | . . . . . Unidentified Prototypes 4 | . . . 3 1 Parts Lost 8 | . . 4 . 4 Power 2 | . . 1 . 1 Propulsion 2 | . . 1 . 1 Utility 1 | . . . . 1 Weapon 3 | . . 2 . 1 Highest Loss Streak 4 | . . 2 . 4 Average Slot Usage (%) 97 | . 91 99 99 97 Engine 11 | . 14 13 14 1 Core 2 | . . . . 11 Treads 21 | . 16 28 28 3 Leg 6 | . 12 . . 23 Device 2 | . . . . 11 Storage 14 | . 14 14 14 14 Protection 10 | . 5 14 13 1 Energy Gun 3 | . 14 . 3 1 Ballistic Gun 24 | . 14 27 23 26 Naked Turns . | . . . . . Heaviest Build 29 | 11 29 29 28 28 Greatest Support 40 | 20 40 40 40 40 Greatest Overweight (x) 1 | 1 1 . . 1 Average Overweight (x) . | . . . . . Largest Inventory Capacity 20 | 8 15 15 20 15 Average Capacity 13 | 7 13 15 15 9 Most Carried 15 | 4 9 15 15 14 Average Carried 12 | 2 7 14 14 8 Final Capacity 15 | 8 15 15 15 8 Final Carried 14 | 4 9 14 14 8 Class Distribution -------------------- 83% | Mutant 10% | Scavenger-Skirmisher 6% | Skirmisher Dominant Class ---------------- Mutant | -10/Materials Mutant | -10/Mines Mutant | -10/Exiles Scavenger-Skirmisher | -9/Mines Resources | -11 -10 -10 -10 -9 ----------- Run | Scr Mat Min Exi Min Matter Collected 650 | 200 164 255 . 31 Remotely . | . . . . . Salvage Created 614 | . 188 417 . 9 Parts 42 | . 7 35 . . Haulers Intercepted 1 | . 1 . . . Recyclers Shooed . | . . . . . Parts Field Recycled . | . . . . . Retrieved Matter . | . . . . . Parts Self-Destructed . | . . . . . Prevented . | . . . . . Kills | -11 -10 -10 -10 -9 ------- Run | Scr Mat Min Exi Min Combat Hostiles Destroyed 21 | . 5 15 . 1 Guns 21 | . 5 15 . 1 Classes Destroyed 5 | . 4 . . 1 Hauler 1 | . 1 . . . Watcher 1 | . 1 . . . Swarmer 12 | . 3 9 . . Grunt 8 | . 2 6 . . Assembled 1 | . . . . 1 Best Kill Streak 6 | . 6 3 . 1 Combat Bots Only 5 | . 5 3 . 1 Max Kills in Single Turn 2 | . 1 2 . 1 Gunslinging 1 | . . 1 . . Exploded . | . . . . . Melee . | . . . . . Uniques/NPCs Destroyed . | . . . . . Combat | -11 -10 -10 -10 -9 -------- Run | Scr Mat Min Exi Min Damage Taken 1299 | . 225 705 . 369 Core 257 | . 68 64 . 125 Absorbed by Shields . | . . . . . Core Remaining (%) 100 | 100 . . . . Volleys Fired 82 | . 19 48 . 15 Largest 2 | . 2 2 . 2 Hottest 85 | . 70 70 . 85 Shots Fired 163 | . 38 96 . 29 Gun 163 | . 38 96 . 29 Cannon . | . . . . . Launcher . | . . . . . Special . | . . . . . Kinetic 133 | . 19 92 . 22 Thermal 30 | . 19 4 . 7 Explosive . | . . . . . Electromagnetic . | . . . . . Robot Hit Streak 16 | . 11 16 . 7 Robot Miss Streak 6 | . 3 3 . 6 Penetration Max . | . . . . . Secondary Targets 4 | . 2 2 . . Max Gunslinging Chain 1 | . 1 1 . . Shots Hit Robots 108 | . 24 70 . 14 Core Hits 45 | . 11 31 . 3 Critical Kills 1 | . . 1 . . Critical Parts Destroyed . | . . . . . Critical Strikes 2 | . 1 1 . . Burn 1 | . 1 . . . Destroy 1 | . . 1 . . Melee Attacks . | . . . . . Impact . | . . . . . Slashing . | . . . . . Piercing . | . . . . . Sneak Attacks . | . . . . . Combat Hostiles . | . . . . . Follow-up Attacks . | . . . . . Damage Inflicted 978 | . 261 589 . 128 Guns 978 | . 261 589 . 128 Cannons . | . . . . . Explosions . | . . . . . Melee . | . . . . . Ramming . | . . . . . Kinetic 730 | . 97 539 . 94 Thermal 248 | . 164 50 . 34 Explosive . | . . . . . Electromagnetic . | . . . . . Impact . | . . . . . Slashing . | . . . . . Piercing . | . . . . . Highest Corruption . | . . . . . Average Corruption . | . . . . . Corruption Purged . | . . . . . Overload Shots . | . . . . . Overflow Damage . | . . . . . Projectiles . | . . . . . Explosions . | . . . . . Melee . | . . . . . Knockbacks . | . . . . . Impact . | . . . . . Kinetic . | . . . . . Secondary . | . . . . . Self-Inflicted Damage . | . . . . . Shots . | . . . . . Rammed . | . . . . . Targets Rammed . | . . . . . Kicked . | . . . . . Crushed . | . . . . . Highest Temperature 222 | . 222 60 . 208 Average Temperature 60 | . 75 14 . 99 Received Heat Transfer 363 | . 72 267 . 24 Effects 2 | . . . . 2 Interference 2 | . . . . 2 Siege Activations . | . . . . . Robots Corrupted . | . . . . . Combat Hostiles . | . . . . . Parts Fried . | . . . . . Impact Corruptions . | . . . . . Robots Melted . | . . . . . Combat Hostiles . | . . . . . Parts Melted 2 | . 2 . . . Heat Transferred 777 | . 555 148 . 74 Parts Sabotaged . | . . . . . Parts Stolen . | . . . . . Parts Stripped . | . . . . . Power Chain Reactions . | . . . . . Missiles Intercepted . | . . . . . Alert | -11 -10 -10 -10 -9 ------- Run | Scr Mat Min Exi Min Peak Influence 295 | . 191 295 . 7 Initial . | . . . . . Average 62 | . 42 111 . 2 Maximum Alert Level 1 | . . 1 . . Low Security (%) 93 | 100 100 87 . 100 Level 1 6 | . . 12 . . Level 2 . | . . . . . Level 3 . | . . . . . Level 4 . | . . . . . Level 5 . | . . . . . High Security . | . . . . . Max Security . | . . . . . Squads Dispatched . | . . . . . Investigation . | . . . . . Extermination . | . . . . . Reinforcement . | . . . . . Assault . | . . . . . Garrison . | . . . . . Intercept . | . . . . . Construction Impeded . | . . . . . Haulers Reinforced . | . . . . . Active Scanning Responses . | . . . . . Cargo Convoy Interrupts . | . . . . . Stealth | -11 -10 -10 -10 -9 --------- Run | Scr Mat Min Exi Min Distress Signals 2 | . 1 1 . . Communications Jammed . | . . . . . Distress Signals . | . . . . . Times Spotted 31 | . 12 15 . 4 Peak Tracking Total 5 | . 5 3 . 3 Tactical Retreats 1 | . 1 . . . Traps | -11 -10 -10 -10 -9 ------- Run | Scr Mat Min Exi Min Traps Triggered 1 | . 1 . . . Indirectly . | . . . . . Trap Hack Attempts . | . . . . . Triggered . | . . . . . Disarmed . | . . . . . Reprogrammed . | . . . . . Reused . | . . . . . Traps Extracted . | . . . . . Installed . | . . . . . Triggered . | . . . . . Machines | -11 -10 -10 -10 -9 ---------- Run | Scr Mat Min Exi Min Machines Disabled . | . . . . . Max in Single Turn . | . . . . . Machines Sabotaged . | . . . . . Garrisons Compromised . | . . . . . Overloaded Fab Kills . | . . . . . Hacking | -11 -10 -10 -10 -9 --------- Run | Scr Mat Min Exi Min Machines Accessed 8 | . 2 . 5 1 Terminals 2 | . 1 . . 1 Fabricators . | . . . . . Repair Stations 1 | . 1 . . . Recycling Units . | . . . . . Scanalyzers . | . . . . . Garrison Access . | . . . . . Total Hacks 55 | . 2 . 50 3 Successful 53 | . 1 . 50 2 Failed 2 | . 1 . . 1 Catastrophic . | . . . . . Database Lockouts . | . . . . . Manual 1 | . . . 1 . Terminals 4 | . 1 . . 3 Fabricators . | . . . . . Repair Stations 1 | . 1 . . . Recycling Units . | . . . . . Scanalyzers . | . . . . . Garrison Access . | . . . . . Terminal Hacks 52 | . . . 50 2 Record 49 | . . . 49 . Dispatch Records 1 | . . . . 1 Assault Status 1 | . . . . 1 EX-Prototype ID Bank 1 | . . . 1 . Fabricator Hacks . | . . . . . Repair Station Hacks 1 | . 1 . . . Scan Component 1 | . 1 . . . Recycling Unit Hacks . | . . . . . Scanalyzer . | . . . . . Garrison Access Hacks . | . . . . . Unauthorized Hacks . | . . . . . Terminals . | . . . . . Fabricators . | . . . . . Repair Stations . | . . . . . Recycling Units . | . . . . . Scanalyzers . | . . . . . Garrison Access . | . . . . . Data Cores Recovered . | . . . . . Used . | . . . . . Hacking Detections 1 | . . . . 1 Full Trace Events . | . . . . . Feedback Events . | . . . . . Feedback Blocked . | . . . . . Robot Schematics Acquired . | . . . . . Robots Built . | . . . . . Authchips . | . . . . . Time . | . . . . . Total Robot Build Rating . | . . . . . Part Schematics Acquired . | . . . . . Parts Built . | . . . . . Authchips . | . . . . . Time . | . . . . . Total Part Build Rating . | . . . . . Parts Repaired . | . . . . . Time . | . . . . . Parts Recycled . | . . . . . Recycled Matter . | . . . . . Retrieved Matter . | . . . . . Retrieved Components . | . . . . . Parts Scanalyzed . | . . . . . Part Schematics Acquired . | . . . . . Parts Damaged . | . . . . . Bothacking | -11 -10 -10 -10 -9 ------------ Run | Scr Mat Min Exi Min Used RIF Installer . | . . . . . Robots Hacked . | . . . . . Non-combat . | . . . . . Combat . | . . . . . Robot Hacks Applied . | . . . . . Relay Couplers Released . | . . . . . Robots Rewired . | . . . . . Allies Hacked . | . . . . . Hacks Repelled . | . . . . . Allies | -11 -10 -10 -10 -9 -------- Run | Scr Mat Min Exi Min Total Allies . | . . . . . Largest Group . | . . . . . Highest-Rated Group . | . . . . . Highest-Rated Ally . | . . . . . Total Orders . | . . . . . Ally Attacks . | . . . . . Total Damage . | . . . . . Kills . | . . . . . Allies Corrupted . | . . . . . Allies Melted . | . . . . . Intel | -11 -10 -10 -10 -9 ------- Run | Scr Mat Min Exi Min Robot Analysis Total . | . . . . . Derelict Logs Recovered 3 | . . 2 . 1 Drone Launches . | . . . . . Drone Recoveries . | . . . . . Exploration | -11 -10 -10 -10 -9 ------------- Run | Scr Mat Min Exi Min Turns Passed 3213 | 64 416 1070 992 671 Spaces Moved 1729 | 48 199 549 608 325 Core 10 | 10 . . . . Treads 1300 | . 104 549 608 39 Legs 419 | 38 95 . . 286 Wheels . | . . . . . Hover . | . . . . . Flight . | . . . . . Fastest Speed 50 | 50 120 160 160 120 Average Speed 151 | 108 155 160 160 125 Slowest Speed 240 | 120 190 160 160 240 Overloaded Moves . | . . . . . Propulsion Burnouts . | . . . . . Robots Hopped . | . . . . . Cave-ins Triggered . | . . . . . Exploration Rate (%) 56 | 4 32 98 93 55 Regions Visited 4 Branch Regions 3 Pre-discovered Areas 1 | . . . 1 . Known Exits Taken . | . . . . . Unknown Exits Taken 4 | 1 1 1 1 . Scrap Searched 2 | . . 1 . 1 Spaces Dug . | . . . . . Terrain Destroyed . | . . . . . Melee . | . . . . . Projectile . | . . . . . AOE . | . . . . . Terrain Rammed . | . . . . . Walls Destroyed . | . . . . . Machines Disabled . | . . . . . Actions | -11 -10 -10 -10 -9 --------- Run | Scr Mat Min Exi Min Total 2184 | 57 269 663 631 564 Wait 287 | . 42 35 . 210 Move 1725 | 47 198 548 607 325 Hop . | . . . . . Pick Up 25 | 4 4 12 4 1 Fast Attach 12 | 6 2 . 3 1 Attach 10 | . . 4 3 3 Detach 6 | . 1 . 5 . Swap 18 | . 3 8 2 5 Drop 19 | . . 8 7 4 Fire 82 | . 19 48 . 15 Melee . | . . . . . Ram . | . . . . . Kick . | . . . . . Crush . | . . . . . Escape Stasis . | . . . . . Rewire . | . . . . . Trap . | . . . . . Miscellaneous . | . . . . . Route ------- -11/Scrapyard -10/Materials -10/Mines (discovered 3 exits: [*Mat x2] / *Exi) -10/Exiles (discovered 2 exits: *Min x2) -9/Mines History --------- Turn | Location | Event 9 | -11/Scrapyard | Discovered new exit (range 16) 65 | -11/Scrapyard | Entered Materials 304 | -10/Materials | Build established: Mutant 418 | -10/Materials | Discovered new exit (range 7) 481 | -10/Materials | Entered Mines 994 | -10/Mines | Discovered new exit (range 15) 1240 | -10/Mines | Found a hidden stash of uninstalled traps 1283 | -10/Mines | Discovered new exit (range 6) 1300 | -10/Mines | Core integrity fell below 50% 1384 | -10/Mines | Learned Materials emergency access door positions 1544 | -10/Mines | Deemed a non-threat by the Exiles lab entrance 1544 | -10/Mines | Discovered new exit (range 5) 1551 | -10/Mines | Entered Exiles 1572 | -10/Exiles | Discovered new exit (range 15) 1622 | -10/Exiles | Met 8R-AWN 1655 | -10/Exiles | Met EX-HEX 1764 | -10/Exiles | Met EX-DEC 1845 | -10/Exiles | Visited The Gauntlet 2073 | -10/Exiles | Met EX-BIN 2217 | -10/Exiles | Aligned with FarCom system 2218 | -10/Exiles | Given EX-Vault access code 2255 | -10/Exiles | Opened EX-Vault 2289 | -10/Exiles | Found Prototype Energy Cannon 2289 | -10/Exiles | Identified Latent Energy Streamer 2296 | -10/Exiles | Found Prototype Processor 2296 | -10/Exiles | Identified 0b10 Alert Chip 2301 | -10/Exiles | Found Prototype Device 2301 | -10/Exiles | Identified Trap Reconfigurator 2377 | -10/Exiles | Warned to stay clear of 0b10 Research branches 2434 | -10/Exiles | Learned location of Zion (-7) 2526 | -10/Exiles | Discovered new exit (range 12) 2543 | -10/Exiles | Entered Mines 2546 | -9/Mines | Met a Derelict bent on vengeance 2603 | -9/Mines | Excavation squad dispatched 2603 | -9/Mines | A large section of the Mines collapsed 2622 | -9/Mines | Core integrity fell below 20% 2657 | -9/Mines | Lost 4 parts (1p1n1u1w) 2667 | -9/Mines | Found a damaged Exp. Sensor Array with a note attached 2670 | -9/Mines | Found Prototype Device 2670 | -9/Mines | Identified Exp. Sensor Array 2853 | -9/Mines | Excavation squad dispatched 3103 | -9/Mines | Excavation squad dispatched 3193 | -9/Mines | Build established: Scavenger-Skirmisher 3214 | -9/Mines | Destroyed by G-34 Mercenary with Small Laser Last Messages --------------- 1x Patrol >>Enumerate(Assaults) Retrieving latest reported positions... No active assault squads found. 02799_ K-01 Serf collects debris. 02847_ Acquired derelict log, extracted data. Data stored: Storage entrances (x1). 02853_ ALERT: Derelict activity in mines confirmed. Dispatching additional escorted excavation squad. 02893_ Searching scrap... 02893_ Found Med. Matter Pod. 02893_ Found Imp. Aluminum Leg. 02893_ Found Lgt. EM Pulse Cannon. 02893_ Found Spread Laser. 02893_ Found 22 Matter. 02894_ Acquired 22 matter. 02897_ Dropped Particle Gun. 02898_ Acquired Imp. Aluminum Leg. 03103_ ALERT: Derelict activity in mines confirmed. Dispatching additional escorted excavation squad. Map ----- +----------------------------------------------------+ | ?????????????????# #??????## | | ???????????####### #???????# | | ???????????# ## ##??????# | | ???????????# # ##????## | | ????????????# #????# | | ????????????## #????# | | ????????####?##### #????# | | ???????## ##????## #???## | | ???????# #?????## #??## | | ??????## #??????# #??# | | ?????## #??????## #??# | | ????## ##?????## #??# | | ????# ##??????# ? #??# | | ????# ##??????# ##??# | | ????# ######?# ? ####???# | | ????# ## ### ##??????# | | ???## ? ## #???????# | | ??## g ### ###????## | | ?## ##?# ##????# | | ?# ##?#???# #????? | | ?# ### #????# #????? | | ?## ####?#?#?????#? #????? | | ??## ##????# #??????# #????? | | ???## #?????#?#??????# #????? | | ????# ####### #??????# #????? | | ????# @ggg t[]###????## ##????# | | ????######### #?????# #?????# | | ????????????### ####### #??#### | | ??????????????# #??# | | ??????????????######### #??# ## | | ??????????????????????# #??# ## | | ???????????????????#### #??# ## | | ???????????????????# g #### ## | | ???????????????????#?## ## | | ???????????????????#?####### #? | | ???????????????????# #?????# ## | | ????Y????Y?????????#g#?????# | | ???????????????????# #?????#### | | ???????????????????# #????????? | | ???????????????????# #????????? | | ??????????????????? #????????? | | ?????????????g?????###????????? | | ??????????????????????????????? | | ??????????????????????????????? | | ??????????????????????????????? | | ??????????????????????????????? | | ??????????????????????????????? | | ??????????????????????????????? | | ??????????????????????????????? | | ??????????????????????????????? | +----------------------------------------------------+ Best States ------------- Heat Dissipation 25 Energy Generation 14 Energy Capacity 250 Matter Stores 300 Matter Capacity 300 Sight Range 16 Robot Scan Range 20 Terrain Scan Density 10 Power Shielding 33 Evasion (%) 55 Recoil Reduction 2 Item Schematics ----------------- None Robot Schematics ------------------ None Fabricated ------------ Nothing Alien Tech Used ----------------- None Achievements -------------- None Challenges ------------ None Game ------ Seed CloakingIntegratedDevice Manual? 0 Play Time 00:44:13 Cumulative 59.7 hours Start 2021.11.05 @ 10:56:50 End 2021.11.05 @ 11:43:49 Sessions 1 Manual Loads 0 Difficulty Rogue Special Mode None Game No. 35 Rogue 34 Adventurer 1 Explorer 0 Win Type - Total 5 Types 4/1/0/0/0/0/0/0/0 Lore% 54 Gallery% 43 Achievement% 43 Wizard Run 0 Options --------- ASCII 1 Keyboard 1 Movement Vi Keybinds 0 Fullscreen 2 Font 18/SmallcapsGlow Map View 76x50 Tactical HUD 1 Map Filters NONE Filters NONE Steam 1 RUN: dd005aa6-668e-403e-9eb7-ad23c6191ee7